Workbook

Sheet Sheet2
A1: Shifted Exponential CDF | C1: Using the inverse CDF sampling method | E1: theta | G1: Random Number | H1: Random Draw | I1: Observations | K1: From Jaynes | U1: Bootstrap Samples | X1: Bootstrap Sample Means | Y1: Overall Mean | AB1: SE(theta)
A2: F(X) = 1-exp(-lambda*(x-theta)), x>=theta | C2: F(X) = 1-exp(theta-x) | E2: 10 | G2: =RAND() -> 0.1410428491 | H2: =$E$2-LN(1-G2) -> 10.15203624 | I2: =COUNTA(G:G)-1 -> 3530 | K2: Observe: {10, 12, 15}, calculate frequentist 95% CI for theta | P2: Also consider bootstrapping {10, 12, 15} | T2: 1 | U2: =INDEX(sample,ROWS(sample)*RAND()+1,COLUMNS(sample)*RAND()+1) -> 15 | V2: 12 | W2: 10 | X2: =AVERAGE(U2:W2)-1 -> 11.33333333 | Y2: =AVERAGE(X:X) -> 11.445 | Z2: =(X2-$Y$2)^2 -> 0.01246944444 | AA2: =SUM(Z:Z) -> 279.8394444 | AB2: =(AA2/(AD6-1))^0.5 -> 1.185845 | AD2: alpha
A3: 0 otherwise | G3: =RAND() -> 0.9136645474 | H3: =$E$2-LN(1-G3) -> 12.44951496 | K3: low | L3: up | M3: Standard Deviation | N3: Standard Error | Q3: Original Sample | T3: 2 | U3: 10 | V3: 12 | W3: 10 | X3: =AVERAGE(U3:W3)-1 -> 9.666666667 | Z3: =(X3-$Y$2)^2 -> 3.162469444 | AD3: 0.05
C4: rand = 1-exp(theta-x) | G4: =RAND() -> 0.3869192619 | H4: =$E$2-LN(1-G4) -> 10.48925864 | K4: 10.2 | L4: 12.2 | M4: =(1/I2)^0.5 -> 0.0168311057 | N4: =M4/I2^0.5 -> 0.000283286119 | Q4: 10 | T4: 3 | U4: 10 | V4: 15 | W4: 12 | X4: 11.33333333 | Z4: 0.01246944444
A5: lambda = 1 in our problem | G5: 0.3387465754 | H5: 10.41361812 | Q5: 12 | T5: 4 | U5: 10 | V5: 12 | W5: 12 | X5: 10.33333333 | Z5: 1.235802778 | AD5: Number of bootstrap samples
C6: theta - ln(1-rand) = x | G6: 0.09040031838 | H6: 10.09475069 | K6: But… | M6: width | Q6: 15 | T6: 5 | U6: 15 | V6: 10 | W6: 15 | X6: 12.33333333 | Z6: 0.7891361111 | AD6: =COUNTA(T:T) -> 200
A7: F(X) = 1-exp(theta-x) | G7: 0.1863668615 | H7: 10.2062457 | K7: Bayesian 95% credible region | M7: =L4-K4 -> 2 | T7: 6 | U7: 15 | V7: 10 | W7: 15 | X7: 12.33333333 | Z7: 0.7891361111
C8: Idea: | G8: 0.2496391156 | H8: 10.28720101 | K8: low | L8: up | T8: 7 | U8: 15 | V8: 10 | W8: 12 | X8: 11.33333333 | Z8: 0.01246944444
A9: rand = 1-exp(theta-x) | C9: generate random numbers in (0,1) | G9: 0.478048043 | H9: 10.65017973 | K9: 9 | L9: 10 | T9: 8 | U9: 15 | V9: 10 | W9: 15 | X9: 12.33333333 | Z9: 0.7891361111
A10: theta - ln(1-rand) = x | C10: for each one, solve for x | G10: 0.6863448555 | H10: 11.15946116 | T10: 9 | U10: 10 | V10: 15 | W10: 10 | X10: 10.66666667 | Z10: 0.6058027778
G11: 0.3938832462 | H11: 10.50068265 | K11: Is this evidence that the frequentist CI is flawed? | T11: 10 | U11: 12 | V11: 12 | W11: 15 | X11: 12 | Z11: 0.308025
G12: 0.3671016418 | H12: 10.45744544 | K12: I do not believe so. | T12: 11 | U12: 12 | V12: 15 | W12: 12 | X12: 12 | Z12: 0.308025
G13: 0.02332694653 | H13: 10.02360333 | T13: 12 | U13: 15 | V13: 10 | W13: 15 | X13: 12.33333333 | Z13: 0.7891361111
G14: 0.1079209323 | H14: 10.11420051 | K14: First, it is a small sample size situation. I do not believe any interval is great. | T14: 13 | U14: 15 | V14: 15 | W14: 15 | X14: 14 | Z14: 6.528025
G15: 0.9159636289 | H15: 12.47650558 | K15: Second, the example disallows the frequentist to use ANY other frequentist method. | T15: 14 | U15: 10 | V15: 10 | W15: 12 | X15: 9.666666667 | Z15: 3.162469444
G16: 0.5643826707 | H16: 10.83099111 | K16: Not only that, it disallows the frequentist to use scientific knowledge that theta < min(X_i) | T16: 15 | U16: 10 | V16: 10 | W16: 15 | X16: 10.66666667 | Z16: 0.6058027778
G17: 0.2331563481 | H17: 10.26547234 | T17: 16 | U17: 10 | V17: 15 | W17: 10 | X17: 10.66666667 | Z17: 0.6058027778
G18: 0.8040945859 | H18: 11.63012332 | K18: Consider some other possibilities: | T18: 17 | U18: 15 | V18: 12 | W18: 10 | X18: 11.33333333 | Z18: 0.01246944444
G19: 0.2847557584 | H19: 10.3351312 | T19: 18 | U19: 10 | V19: 10 | W19: 15 | X19: 10.66666667 | Z19: 0.6058027778
G20: 0.06582102425 | H20: 10.06808724 | K20: 95% CI for theta, for large n | L20: <--- Collapses to 10 | T20: 19 | U20: 15 | V20: 12 | W20: 10 | X20: 11.33333333 | Z20: 0.01246944444
G21: 0.8371021489 | H21: 11.81463196 | K21: low | L21: up | M21: mean | N21: Standard Deviation | O21: Standard Error | T21: 20 | U21: 15 | V21: 15 | W21: 12 | X21: 13 | Z21: 2.418025
G22: 0.4669373649 | H22: 10.62911635 | K22: =M22-1.96*O22 -> 10.0443205 | L22: =M22+1.96*O22 -> 10.04549283 | M22: =AVERAGE(H:H)-1 -> 10.04490667 | N22: =_xlfn.STDEV.S(H:H) -> 1.055695672 | O22: =N22/I2 -> 0.0002990639296 | T22: 21 | U22: =INDEX(sample,ROWS(sample)*RAND()+1,COLUMNS(sample)*RAND()+1) -> 10 | V22: 15 | W22: 15 | X22: 12.33333333 | Z22: 0.7891361111
G23: 0.9481683046 | H23: 12.95975344 | T23: 22 | U23: 12 | V23: 10 | W23: 15 | X23: 11.33333333 | Z23: 0.01246944444
G24: 0.9481752338 | H24: 12.95988713 | T24: 23 | U24: 15 | V24: 10 | W24: 12 | X24: 11.33333333 | Z24: 0.01246944444
G25: 0.7374386223 | H25: 11.3372704 | N25: And corresponding versions with up=10, keep interval same width | T25: 24 | U25: 12 | V25: 10 | W25: 15 | X25: 11.33333333 | Z25: 0.01246944444
G26: 0.764498509 | H26: 11.44603803 | K26: 95% confidence interval using Order Statistics | T26: 25 | U26: 15 | V26: 15 | W26: 15 | X26: =AVERAGE(U26:W26)-1 -> 14 | Z26: 6.528025
G27: 0.8791551094 | H27: 12.11324745 | K27: low | L27: up | M27: width | N27: low | O27: up | T27: 26 | U27: 12 | V27: 15 | W27: 10 | X27: 11.33333333 | Z27: 0.01246944444
G28: 0.1204349947 | H28: 10.12832781 | K28: =_xlfn.PERCENTILE.EXC(H:H,0.025) -> 10.02657134 | L28: =_xlfn.PERCENTILE.EXC(H:H,0.975) -> 13.78582877 | M28: =L28-K28 -> 3.759257422 | N28: =O28-M28 -> 6.240742578 | O28: 10 | T28: 27 | U28: 10 | V28: 12 | W28: 10 | X28: 9.666666667 | Z28: 3.162469444
G29: 0.7212697345 | H29: 11.27751076 | T29: 28 | U29: 15 | V29: 10 | W29: 10 | X29: 10.66666667 | Z29: 0.6058027778
G30: 0.6418489569 | H30: 11.02680047 | T30: 29 | U30: 15 | V30: 15 | W30: 15 | X30: 14 | Z30: 6.528025
G31: 0.2216829383 | H31: 10.2506213 | K31: Using min as upper, keep interval same width as original 95% CI? | T31: 30 | U31: 10 | V31: 10 | W31: 10 | X31: 9 | Z31: 5.978025
G32: 0.07709891166 | H32: 10.08023321 | K32: low | L32: up | T32: 31 | U32: 10 | V32: 12 | W32: 12 | X32: 10.33333333 | Z32: 1.235802778
G33: 0.522371286 | H33: 10.7389216 | K33: =L33-M7 -> 8 | L33: =10 -> 10 | T33: 32 | U33: 15 | V33: 12 | W33: 10 | X33: 11.33333333 | Z33: 0.01246944444
G34: 0.8746795167 | H34: 12.07688096 | T34: 33 | U34: 15 | V34: 12 | W34: 12 | X34: 12 | Z34: 0.308025
G35: 0.9530282497 | H35: 13.05820892 | T35: 34 | U35: 12 | V35: 12 | W35: 15 | X35: 12 | Z35: 0.308025
G36: 0.5838335374 | H36: 10.87666995 | K36: Basic Bootstrap 95% CI | T36: 35 | U36: 10 | V36: 15 | W36: 10 | X36: 10.66666667 | Z36: 0.6058027778
G37: 0.1904795103 | H37: 10.21131319 | K37: low | L37: up | M37: width | N37: low | O37: up | T37: 36 | U37: 12 | V37: 10 | W37: 15 | X37: 11.33333333 | Z37: 0.01246944444
G38: 0.3109553588 | H38: 10.37244922 | K38: =(2*$E$2)-SMALL(X2:X201,$AD$6*(1-$AD$3)) -> 6 | L38: =(2*$E$2)-SMALL(X2:X201,$AD$6*$AD$3) -> 10.33333333 | M38: =L38-K38 -> 4.333333333 | N38: =O38-M38 -> 5.666666667 | O38: 10 | T38: 37 | U38: 12 | V38: 15 | W38: 15 | X38: 13 | Z38: 2.418025
G39: 0.09535698758 | H39: 10.10021487 | T39: 38 | U39: 15 | V39: 10 | W39: 10 | X39: 10.66666667 | Z39: 0.6058027778
G40: 0.8910298463 | H40: 12.21668125 | T40: 39 | U40: 15 | V40: 15 | W40: 15 | X40: 14 | Z40: 6.528025
G41: 0.8927161724 | H41: 12.23227736 | K41: Percentile Bootstrap 95% CI | T41: 40 | U41: 10 | V41: 10 | W41: 15 | X41: 10.66666667 | Z41: 0.6058027778
G42: 0.4198602415 | H42: 10.54448624 | K42: low | L42: up | M42: width | N42: low | O42: up | T42: 41 | U42: =INDEX(sample,ROWS(sample)*RAND()+1,COLUMNS(sample)*RAND()+1) -> 12 | V42: 15 | W42: 10 | X42: 11.33333333 | Z42: 0.01246944444
G43: 0.03502481104 | H43: 10.03565289 | K43: =SMALL(X2:X201,$AD$6*$AD$3) -> 9.666666667 | L43: =SMALL(X2:X201,$AD$6*(1-$AD$3)) -> 14 | M43: =L43-K43 -> 4.333333333 | N43: =O43-M43 -> 5.666666667 | O43: 10 | T43: 42 | U43: 15 | V43: 12 | W43: 12 | X43: 12 | Z43: 0.308025
G44: 0.1948649323 | H44: 10.21674523 | T44: 43 | U44: 15 | V44: 15 | W44: 12 | X44: 13 | Z44: 2.418025
G45: 0.7724678511 | H45: 11.48046374 | T45: 44 | U45: 12 | V45: 15 | W45: 15 | X45: 13 | Z45: 2.418025
G46: 0.4602411877 | H46: 10.61663288 | K46: Bootstrap 95% CI, using SE(theta) | T46: 45 | U46: 10 | V46: 10 | W46: 10 | X46: 9 | Z46: 5.978025
G47: 0.8609234448 | H47: 11.97273074 | K47: low | L47: up | M47: width | N47: low | O47: up | T47: 46 | U47: 10 | V47: 12 | W47: 10 | X47: 9.666666667 | Z47: 3.162469444
G48: 0.2034368074 | H48: 10.22744881 | K48: =$Y$2-1.96*$AB$2 -> 9.1207438 | L48: =$Y$2+1.96*$AB$2 -> 13.7692562 | M48: =L48-K48 -> 4.6485124 | N48: =O48-M48 -> 5.3514876 | O48: 10 | T48: 47 | U48: 15 | V48: 15 | W48: 12 | X48: 13 | Z48: 2.418025
G49: 0.02085523734 | H49: 10.02107578 | T49: 48 | U49: 10 | V49: 10 | W49: 12 | X49: 9.666666667 | Z49: 3.162469444
G50: 0.9192739755 | H50: 12.51669427 | T50: 49 | U50: 10 | V50: 15 | W50: 12 | X50: 11.33333333 | Z50: 0.01246944444
G51: 0.3227842584 | H51: 10.38976538 | T51: 50 | U51: 10 | V51: 15 | W51: 12 | X51: 11.33333333 | Z51: 0.01246944444
G52: 0.4659513692 | H52: 10.62726838 | T52: 51 | U52: 15 | V52: 10 | W52: 12 | X52: 11.33333333 | Z52: 0.01246944444
G53: 0.2436204368 | H53: 10.27921196 | T53: 52 | U53: 12 | V53: 10 | W53: 10 | X53: 9.666666667 | Z53: 3.162469444
G54: 0.6914806695 | H54: 11.17597078 | T54: 53 | U54: 10 | V54: 10 | W54: 12 | X54: 9.666666667 | Z54: 3.162469444
G55: 0.8279813264 | H55: 11.76015224 | T55: 54 | U55: 12 | V55: 15 | W55: 12 | X55: 12 | Z55: 0.308025
G56: 0.01567725831 | H56: 10.01580145 | T56: 55 | U56: 10 | V56: 15 | W56: 12 | X56: 11.33333333 | Z56: 0.01246944444
G57: 0.3695372167 | H57: 10.46130115 | T57: 56 | U57: 10 | V57: 15 | W57: 10 | X57: 10.66666667 | Z57: 0.6058027778
G58: 0.8479099573 | H58: 11.88328255 | T58: 57 | U58: 10 | V58: 10 | W58: 15 | X58: 10.66666667 | Z58: 0.6058027778
G59: 0.4349733039 | H59: 10.5708823 | T59: 58 | U59: 10 | V59: 12 | W59: 12 | X59: 10.33333333 | Z59: 1.235802778
G60: 0.9005066007 | H60: 12.30766398 | T60: 59 | U60: 10 | V60: 10 | W60: 12 | X60: 9.666666667 | Z60: 3.162469444
G61: 0.1117995511 | H61: 10.11855783 | T61: 60 | U61: 10 | V61: 15 | W61: 10 | X61: 10.66666667 | Z61: 0.6058027778
G62: 0.3588324461 | H62: 10.44446446 | T62: 61 | U62: =INDEX(sample,ROWS(sample)*RAND()+1,COLUMNS(sample)*RAND()+1) -> 15 | V62: 15 | W62: 12 | X62: 13 | Z62: 2.418025
G63: 0.2748800755 | H63: 10.32141822 | T63: 62 | U63: 12 | V63: 15 | W63: 15 | X63: 13 | Z63: 2.418025
G64: 0.005184537215 | H64: 10.00519802 | T64: 63 | U64: 15 | V64: 12 | W64: 12 | X64: 12 | Z64: 0.308025
G65: 0.8397608326 | H65: 11.83108778 | T65: 64 | U65: 10 | V65: 15 | W65: 10 | X65: 10.66666667 | Z65: 0.6058027778
G66: 0.5459961516 | H66: 10.7896496 | T66: 65 | U66: 12 | V66: 15 | W66: 10 | X66: 11.33333333 | Z66: 0.01246944444
G67: 0.3955560004 | H67: 10.50344625 | T67: 66 | U67: 10 | V67: 12 | W67: 12 | X67: 10.33333333 | Z67: =(X67-$Y$2)^2 -> 1.235802778
G68: =RAND() -> 0.06125841056 | H68: =$E$2-LN(1-G68) -> 10.06321504 | T68: 67 | U68: 15 | V68: 15 | W68: 12 | X68: 13 | Z68: 2.418025
G69: 0.4500269374 | H69: 10.59788598 | T69: 68 | U69: 12 | V69: 15 | W69: 12 | X69: 12 | Z69: 0.308025
G70: 0.06680104939 | H70: 10.06913686 | T70: 69 | U70: 10 | V70: 15 | W70: 12 | X70: 11.33333333 | Z70: 0.01246944444
G71: 0.14404626 | H71: 10.15553895 | T71: 70 | U71: 12 | V71: 12 | W71: 10 | X71: 10.33333333 | Z71: 1.235802778
G72: 0.4694431003 | H72: 10.63382807 | T72: 71 | U72: 15 | V72: 10 | W72: 15 | X72: 12.33333333 | Z72: 0.7891361111
G73: 0.2572511327 | H73: 10.29739729 | T73: 72 | U73: 10 | V73: 12 | W73: 15 | X73: 11.33333333 | Z73: 0.01246944444
G74: 0.01077495244 | H74: 10.01083342 | T74: 73 | U74: 15 | V74: 15 | W74: 15 | X74: 14 | Z74: 6.528025
G75: 0.7999061486 | H75: 11.60896877 | T75: 74 | U75: 12 | V75: 10 | W75: 15 | X75: 11.33333333 | Z75: 0.01246944444
G76: 0.7906737985 | H76: 11.56386147 | T76: 75 | U76: 15 | V76: 10 | W76: 12 | X76: 11.33333333 | Z76: 0.01246944444
G77: 0.9632274481 | H77: 13.30300358 | T77: 76 | U77: 15 | V77: 10 | W77: 15 | X77: 12.33333333 | Z77: 0.7891361111
G78: 0.9306525248 | H78: 12.66862554 | T78: 77 | U78: 15 | V78: 15 | W78: 15 | X78: 14 | Z78: 6.528025
G79: 0.7784333529 | H79: 11.50703184 | T79: 78 | U79: 10 | V79: 12 | W79: 12 | X79: 10.33333333 | Z79: 1.235802778
G80: 0.9330417295 | H80: 12.70368568 | T80: 79 | U80: 10 | V80: 15 | W80: 10 | X80: 10.66666667 | Z80: 0.6058027778
G81: 0.172700748 | H81: 10.1895888 | T81: 80 | U81: 15 | V81: 15 | W81: 10 | X81: 12.33333333 | Z81: 0.7891361111
G82: 0.8725146036 | H82: 12.05975346 | T82: 81 | U82: =INDEX(sample,ROWS(sample)*RAND()+1,COLUMNS(sample)*RAND()+1) -> 15 | V82: 15 | W82: 15 | X82: 14 | Z82: 6.528025
G83: 0.9891114802 | H83: 14.52004627 | T83: 82 | U83: 12 | V83: 10 | W83: 10 | X83: 9.666666667 | Z83: 3.162469444
G84: 0.00431291848 | H84: 10.00432225 | T84: 83 | U84: 10 | V84: 10 | W84: 15 | X84: 10.66666667 | Z84: 0.6058027778
G85: 0.1856427374 | H85: 10.20535611 | T85: 84 | U85: 15 | V85: 12 | W85: 10 | X85: 11.33333333 | Z85: 0.01246944444
G86: 0.4286215553 | H86: 10.55970351 | T86: 85 | U86: 15 | V86: 12 | W86: 12 | X86: 12 | Z86: 0.308025
G87: 0.9234642967 | H87: 12.56999794 | T87: 86 | U87: 15 | V87: 12 | W87: 10 | X87: 11.33333333 | Z87: 0.01246944444
G88: 0.7751401958 | H88: 11.49227816 | T88: 87 | U88: 12 | V88: 10 | W88: 15 | X88: 11.33333333 | Z88: 0.01246944444
G89: 0.192207239 | H89: 10.21344974 | T89: 88 | U89: 10 | V89: 15 | W89: 15 | X89: 12.33333333 | Z89: 0.7891361111
G90: 0.3050411093 | H90: 10.36390259 | T90: 89 | U90: 12 | V90: 10 | W90: 12 | X90: =AVERAGE(U90:W90)-1 -> 10.33333333 | Z90: 1.235802778
G91: 0.02752240706 | H91: 10.02790824 | T91: 90 | U91: 15 | V91: 10 | W91: 12 | X91: 11.33333333 | Z91: 0.01246944444
G92: 0.6290714292 | H92: 10.99174577 | T92: 91 | U92: 12 | V92: 10 | W92: 15 | X92: 11.33333333 | Z92: 0.01246944444
G93: 0.5606179154 | H93: 10.82238589 | T93: 92 | U93: 10 | V93: 12 | W93: 10 | X93: 9.666666667 | Z93: 3.162469444
G94: 0.1703873755 | H94: 10.1867964 | T94: 93 | U94: 15 | V94: 10 | W94: 12 | X94: 11.33333333 | Z94: 0.01246944444
G95: 0.4630790852 | H95: 10.62190447 | T95: 94 | U95: 12 | V95: 10 | W95: 12 | X95: 10.33333333 | Z95: 1.235802778
G96: 0.9510564837 | H96: 13.01708838 | T96: 95 | U96: 15 | V96: 15 | W96: 10 | X96: 12.33333333 | Z96: 0.7891361111
G97: 0.843881926 | H97: 11.85714267 | T97: 96 | U97: 10 | V97: 15 | W97: 10 | X97: 10.66666667 | Z97: 0.6058027778
G98: 0.2294199147 | H98: 10.26061169 | T98: 97 | U98: 12 | V98: 12 | W98: 10 | X98: 10.33333333 | Z98: 1.235802778
G99: 0.4265786109 | H99: 10.55613442 | T99: 98 | U99: 10 | V99: 10 | W99: 10 | X99: 9 | Z99: 5.978025
G100: 0.8945856533 | H100: 12.24985654 | T100: 99 | U100: 10 | V100: 15 | W100: 12 | X100: 11.33333333 | Z100: 0.01246944444
G101: 0.3930162711 | H101: 10.49925329 | T101: 100 | U101: 12 | V101: 10 | W101: 15 | X101: 11.33333333 | Z101: 0.01246944444
G102: 0.9126332684 | H102: 12.43764071 | T102: 101 | U102: =INDEX(sample,ROWS(sample)*RAND()+1,COLUMNS(sample)*RAND()+1) -> 15 | V102: 10 | W102: 12 | X102: 11.33333333 | Z102: 0.01246944444
G103: 0.1991178896 | H103: 10.22204152 | T103: 102 | U103: 12 | V103: 12 | W103: 15 | X103: 12 | Z103: 0.308025
G104: 0.4420225575 | H104: 10.58343674 | T104: 103 | U104: 10 | V104: 15 | W104: 12 | X104: 11.33333333 | Z104: 0.01246944444
G105: 0.2792867061 | H105: 10.32751387 | T105: 104 | U105: 15 | V105: 12 | W105: 10 | X105: 11.33333333 | Z105: 0.01246944444
G106: 0.09141961554 | H106: 10.09587191 | T106: 105 | U106: 12 | V106: 12 | W106: 10 | X106: 10.33333333 | Z106: 1.235802778
G107: 0.3983033786 | H107: 10.50800191 | T107: 106 | U107: 15 | V107: 12 | W107: 15 | X107: 13 | Z107: 2.418025
G108: 0.2861766263 | H108: 10.33711972 | T108: 107 | U108: 10 | V108: 15 | W108: 15 | X108: 12.33333333 | Z108: 0.7891361111
G109: 0.8590280345 | H109: 11.95919423 | T109: 108 | U109: 12 | V109: 10 | W109: 12 | X109: 10.33333333 | Z109: 1.235802778
G110: 0.9875162679 | H110: 14.38332892 | T110: 109 | U110: 10 | V110: 15 | W110: 15 | X110: 12.33333333 | Z110: 0.7891361111
G111: 0.9806247248 | H111: 13.9437575 | T111: 110 | U111: 10 | V111: 15 | W111: 15 | X111: 12.33333333 | Z111: 0.7891361111
G112: 0.9813752445 | H112: 13.98326364 | T112: 111 | U112: 15 | V112: 15 | W112: 15 | X112: 14 | Z112: 6.528025
G113: 0.3835857996 | H113: 10.48383614 | T113: 112 | U113: 10 | V113: 15 | W113: 12 | X113: 11.33333333 | Z113: 0.01246944444
G114: 0.6161015949 | H114: 10.95737733 | T114: 113 | U114: 12 | V114: 15 | W114: 10 | X114: 11.33333333 | Z114: 0.01246944444
G115: 0.2729365083 | H115: 10.31874147 | T115: 114 | U115: 12 | V115: 15 | W115: 12 | X115: 12 | Z115: 0.308025
G116: 0.5858747137 | H116: 10.88158673 | T116: 115 | U116: 15 | V116: 12 | W116: 12 | X116: 12 | Z116: 0.308025
G117: 0.01258144619 | H117: 10.01266126 | T117: 116 | U117: 12 | V117: 10 | W117: 10 | X117: 9.666666667 | Z117: 3.162469444
G118: 0.6198319856 | H118: 10.96714198 | T118: 117 | U118: 12 | V118: 15 | W118: 15 | X118: 13 | Z118: 2.418025
G119: 0.2178383286 | H119: 10.24569382 | T119: 118 | U119: 15 | V119: 12 | W119: 12 | X119: 12 | Z119: 0.308025
G120: 0.9880166058 | H120: 14.4242334 | T120: 119 | U120: 15 | V120: 10 | W120: 15 | X120: 12.33333333 | Z120: 0.7891361111
G121: 0.08325245543 | H121: 10.08692315 | T121: 120 | U121: 15 | V121: 12 | W121: 10 | X121: 11.33333333 | Z121: 0.01246944444
G122: 0.9922495999 | H122: 14.86001082 | T122: 121 | U122: =INDEX(sample,ROWS(sample)*RAND()+1,COLUMNS(sample)*RAND()+1) -> 10 | V122: 12 | W122: 15 | X122: 11.33333333 | Z122: 0.01246944444
G123: 0.6808215002 | H123: 11.14200477 | T123: 122 | U123: 15 | V123: 15 | W123: 15 | X123: 14 | Z123: 6.528025
G124: 0.1101840623 | H124: 10.11674065 | T124: 123 | U124: 15 | V124: 10 | W124: 12 | X124: 11.33333333 | Z124: 0.01246944444
G125: 0.4384241984 | H125: 10.57700852 | T125: 124 | U125: 15 | V125: 15 | W125: 15 | X125: 14 | Z125: 6.528025
G126: 0.001648513534 | H126: 10.00164987 | T126: 125 | U126: 15 | V126: 12 | W126: 15 | X126: 13 | Z126: 2.418025
G127: 0.3418306939 | H127: 10.41829308 | T127: 126 | U127: 12 | V127: 10 | W127: 15 | X127: 11.33333333 | Z127: 0.01246944444
G128: 0.4619584054 | H128: 10.61981941 | T128: 127 | U128: 15 | V128: 12 | W128: 15 | X128: 13 | Z128: 2.418025
G129: 0.5232402348 | H129: 10.74074255 | T129: 128 | U129: 12 | V129: 12 | W129: 10 | X129: 10.33333333 | Z129: 1.235802778
G130: 0.1556135291 | H130: 10.16914499 | T130: 129 | U130: 10 | V130: 15 | W130: 10 | X130: 10.66666667 | Z130: 0.6058027778
G131: 0.9603321054 | H131: 13.22721312 | T131: 130 | U131: 12 | V131: 10 | W131: 12 | X131: 10.33333333 | Z131: =(X131-$Y$2)^2 -> 1.235802778
G132: =RAND() -> 0.006314537066 | H132: =$E$2-LN(1-G132) -> 10.00633456 | T132: 131 | U132: 15 | V132: 10 | W132: 12 | X132: 11.33333333 | Z132: 0.01246944444
G133: 0.3892088615 | H133: 10.49300021 | T133: 132 | U133: 10 | V133: 15 | W133: 15 | X133: 12.33333333 | Z133: 0.7891361111
G134: 0.2550144125 | H134: 10.29439041 | T134: 133 | U134: 12 | V134: 10 | W134: 15 | X134: 11.33333333 | Z134: 0.01246944444
G135: 0.3978694501 | H135: 10.507281 | T135: 134 | U135: 10 | V135: 15 | W135: 15 | X135: 12.33333333 | Z135: 0.7891361111
G136: 0.893145256 | H136: 12.2362849 | T136: 135 | U136: 15 | V136: 10 | W136: 15 | X136: 12.33333333 | Z136: 0.7891361111
G137: 0.520418382 | H137: 10.73484118 | T137: 136 | U137: 10 | V137: 12 | W137: 10 | X137: 9.666666667 | Z137: 3.162469444
G138: 0.61396326 | H138: 10.95182273 | T138: 137 | U138: 10 | V138: 15 | W138: 12 | X138: 11.33333333 | Z138: 0.01246944444
G139: 0.9740312862 | H139: 13.65086278 | T139: 138 | U139: 15 | V139: 15 | W139: 15 | X139: 14 | Z139: 6.528025
G140: 0.3527592016 | H140: 10.43503688 | T140: 139 | U140: 12 | V140: 12 | W140: 10 | X140: 10.33333333 | Z140: 1.235802778
G141: 0.774040472 | H141: 11.48739938 | T141: 140 | U141: 12 | V141: 12 | W141: 15 | X141: 12 | Z141: 0.308025
G142: 0.2140399003 | H142: 10.24084925 | T142: 141 | U142: =INDEX(sample,ROWS(sample)*RAND()+1,COLUMNS(sample)*RAND()+1) -> 15 | V142: 15 | W142: 15 | X142: 14 | Z142: 6.528025
G143: 0.08654615114 | H143: 10.09052243 | T143: 142 | U143: 15 | V143: 10 | W143: 10 | X143: 10.66666667 | Z143: 0.6058027778
G144: 0.6981317649 | H144: 11.19776466 | T144: 143 | U144: 15 | V144: 12 | W144: 15 | X144: 13 | Z144: 2.418025
G145: 0.2958116045 | H145: 10.35070935 | T145: 144 | U145: 15 | V145: 12 | W145: 10 | X145: 11.33333333 | Z145: 0.01246944444
G146: 0.8362656122 | H146: 11.80950975 | T146: 145 | U146: 15 | V146: 10 | W146: 12 | X146: 11.33333333 | Z146: 0.01246944444
G147: 0.5019978058 | H147: 10.6971508 | T147: 146 | U147: 10 | V147: 15 | W147: 15 | X147: 12.33333333 | Z147: 0.7891361111
G148: 0.7835899351 | H148: 11.53058022 | T148: 147 | U148: 12 | V148: 10 | W148: 12 | X148: 10.33333333 | Z148: 1.235802778
G149: 0.6953296045 | H149: 11.18852476 | T149: 148 | U149: 10 | V149: 15 | W149: 10 | X149: 10.66666667 | Z149: 0.6058027778
G150: 0.4734652453 | H150: 10.64143794 | T150: 149 | U150: 12 | V150: 15 | W150: 10 | X150: 11.33333333 | Z150: 0.01246944444
G151: 0.8210108188 | H151: 11.72042992 | T151: 150 | U151: 12 | V151: 12 | W151: 10 | X151: 10.33333333 | Z151: 1.235802778
G152: 0.1754373297 | H152: 10.19290213 | T152: 151 | U152: 15 | V152: 12 | W152: 10 | X152: 11.33333333 | Z152: 0.01246944444
G153: 0.07351540107 | H153: 10.07635786 | T153: 152 | U153: 10 | V153: 12 | W153: 15 | X153: 11.33333333 | Z153: 0.01246944444
G154: 0.3726139349 | H154: 10.46619319 | T154: 153 | U154: 10 | V154: 15 | W154: 15 | X154: =AVERAGE(U154:W154)-1 -> 12.33333333 | Z154: 0.7891361111
G155: 0.7981621498 | H155: 11.60029063 | T155: 154 | U155: 12 | V155: 15 | W155: 10 | X155: 11.33333333 | Z155: 0.01246944444
G156: 0.0203362934 | H156: 10.02054592 | T156: 155 | U156: 12 | V156: 10 | W156: 15 | X156: 11.33333333 | Z156: 0.01246944444
G157: 0.1501484951 | H157: 10.16269364 | T157: 156 | U157: 15 | V157: 12 | W157: 15 | X157: 13 | Z157: 2.418025
G158: 0.2178881685 | H158: 10.24575754 | T158: 157 | U158: 15 | V158: 10 | W158: 10 | X158: 10.66666667 | Z158: 0.6058027778
G159: 0.5315749047 | H159: 10.75837907 | T159: 158 | U159: 15 | V159: 10 | W159: 10 | X159: 10.66666667 | Z159: 0.6058027778
G160: 0.7709316671 | H160: 11.47373492 | T160: 159 | U160: 10 | V160: 12 | W160: 10 | X160: 9.666666667 | Z160: 3.162469444
G161: 0.3712248491 | H161: 10.46398156 | T161: 160 | U161: 12 | V161: 12 | W161: 12 | X161: 11 | Z161: 0.198025
G162: 0.7299565853 | H162: 11.30917254 | T162: 161 | U162: =INDEX(sample,ROWS(sample)*RAND()+1,COLUMNS(sample)*RAND()+1) -> 10 | V162: 10 | W162: 10 | X162: 9 | Z162: 5.978025
G163: 0.3155551526 | H163: 10.37914721 | T163: 162 | U163: 12 | V163: 10 | W163: 12 | X163: 10.33333333 | Z163: 1.235802778
G164: 0.04985411403 | H164: 10.05113974 | T164: 163 | U164: 10 | V164: 12 | W164: 10 | X164: 9.666666667 | Z164: 3.162469444
G165: 0.7992980878 | H165: 11.6059345 | T165: 164 | U165: 12 | V165: 15 | W165: 10 | X165: 11.33333333 | Z165: 0.01246944444
G166: 0.4962660341 | H166: 10.685707 | T166: 165 | U166: 10 | V166: 10 | W166: 12 | X166: 9.666666667 | Z166: 3.162469444
G167: 0.8290503548 | H167: 11.76638624 | T167: 166 | U167: 10 | V167: 10 | W167: 15 | X167: 10.66666667 | Z167: 0.6058027778
G168: 0.3124822665 | H168: 10.37466766 | T168: 167 | U168: 12 | V168: 15 | W168: 12 | X168: 12 | Z168: 0.308025
G169: 0.886898082 | H169: 12.17946594 | T169: 168 | U169: 15 | V169: 10 | W169: 10 | X169: 10.66666667 | Z169: 0.6058027778
G170: 0.7049043761 | H170: 11.22045583 | T170: 169 | U170: 12 | V170: 15 | W170: 12 | X170: 12 | Z170: 0.308025
G171: 0.9947440226 | H171: 15.2483893 | T171: 170 | U171: 15 | V171: 10 | W171: 10 | X171: 10.66666667 | Z171: 0.6058027778
G172: 0.1034023582 | H172: 10.10914808 | T172: 171 | U172: 15 | V172: 10 | W172: 15 | X172: 12.33333333 | Z172: 0.7891361111
G173: 0.2292380458 | H173: 10.2603757 | T173: 172 | U173: 15 | V173: 15 | W173: 10 | X173: 12.33333333 | Z173: 0.7891361111
G174: 0.1245010936 | H174: 10.13296138 | T174: 173 | U174: 10 | V174: 12 | W174: 10 | X174: 9.666666667 | Z174: 3.162469444
G175: 0.3212750987 | H175: 10.38753939 | T175: 174 | U175: 10 | V175: 10 | W175: 12 | X175: 9.666666667 | Z175: 3.162469444
G176: 0.9568659504 | H176: 13.14344258 | T176: 175 | U176: 15 | V176: 12 | W176: 10 | X176: 11.33333333 | Z176: 0.01246944444
G177: 0.6261824913 | H177: 10.98398755 | T177: 176 | U177: 10 | V177: 10 | W177: 10 | X177: 9 | Z177: 5.978025
G178: 0.4243918514 | H178: 10.55232815 | T178: 177 | U178: 10 | V178: 12 | W178: 12 | X178: 10.33333333 | Z178: 1.235802778
G179: 0.0804676944 | H179: 10.0838901 | T179: 178 | U179: 12 | V179: 12 | W179: 10 | X179: 10.33333333 | Z179: 1.235802778
G180: 0.3581795639 | H180: 10.44344671 | T180: 179 | U180: 10 | V180: 15 | W180: 10 | X180: 10.66666667 | Z180: 0.6058027778
G181: 0.4993966062 | H181: 10.69194112 | T181: 180 | U181: 12 | V181: 15 | W181: 12 | X181: 12 | Z181: 0.308025
G182: 0.4549005315 | H182: 10.60678699 | T182: 181 | U182: =INDEX(sample,ROWS(sample)*RAND()+1,COLUMNS(sample)*RAND()+1) -> 15 | V182: 12 | W182: 12 | X182: 12 | Z182: 0.308025
G183: 0.8821692325 | H183: 12.13850586 | T183: 182 | U183: 15 | V183: 15 | W183: 12 | X183: 13 | Z183: 2.418025
G184: 0.6084486776 | H184: 10.93763868 | T184: 183 | U184: 10 | V184: 12 | W184: 15 | X184: 11.33333333 | Z184: 0.01246944444
G185: 0.9254048404 | H185: 12.59567966 | T185: 184 | U185: 12 | V185: 15 | W185: 10 | X185: 11.33333333 | Z185: 0.01246944444
G186: 0.5313382026 | H186: 10.75787389 | T186: 185 | U186: 12 | V186: 15 | W186: 10 | X186: 11.33333333 | Z186: 0.01246944444
G187: 0.1353389484 | H187: 10.1454177 | T187: 186 | U187: 12 | V187: 10 | W187: 15 | X187: 11.33333333 | Z187: 0.01246944444
G188: 0.6640575846 | H188: 11.09081552 | T188: 187 | U188: 15 | V188: 15 | W188: 15 | X188: 14 | Z188: 6.528025
G189: 0.3049242479 | H189: 10.36373444 | T189: 188 | U189: 15 | V189: 12 | W189: 12 | X189: 12 | Z189: 0.308025
G190: 0.4640997065 | H190: 10.62380715 | T190: 189 | U190: 15 | V190: 12 | W190: 12 | X190: 12 | Z190: 0.308025
G191: 0.5947175915 | H191: 10.90317115 | T191: 190 | U191: 12 | V191: 15 | W191: 12 | X191: 12 | Z191: 0.308025
G192: 0.4837640331 | H192: 10.66119132 | T192: 191 | U192: 15 | V192: 15 | W192: 15 | X192: 14 | Z192: 6.528025
G193: 0.8448740015 | H193: 11.8635176 | T193: 192 | U193: 15 | V193: 10 | W193: 10 | X193: 10.66666667 | Z193: 0.6058027778
G194: 0.508462498 | H194: 10.71021704 | T194: 193 | U194: 12 | V194: 12 | W194: 10 | X194: 10.33333333 | Z194: 1.235802778
G195: 0.8585845827 | H195: 11.9560535 | T195: 194 | U195: 15 | V195: 12 | W195: 15 | X195: 13 | Z195: =(X195-$Y$2)^2 -> 2.418025
G196: =RAND() -> 0.8900486755 | H196: =$E$2-LN(1-G196) -> 12.20771752 | T196: 195 | U196: 10 | V196: 15 | W196: 10 | X196: 10.66666667 | Z196: 0.6058027778
G197: 0.8247652232 | H197: 11.74162862 | T197: 196 | U197: 15 | V197: 12 | W197: 12 | X197: 12 | Z197: 0.308025
G198: 0.6968867465 | H198: 11.19364877 | T198: 197 | U198: 15 | V198: 10 | W198: 10 | X198: 10.66666667 | Z198: 0.6058027778
G199: 0.8435096495 | H199: 11.85476093 | T199: 198 | U199: 15 | V199: 10 | W199: 12 | X199: 11.33333333 | Z199: 0.01246944444
G200: 0.2734188533 | H200: 10.31940511 | T200: 199 | U200: 15 | V200: 15 | W200: 10 | X200: 12.33333333 | Z200: 0.7891361111
... 3331 more rows
